Workbook

Sheet 0_Instructions
A2: CASING DESIGN LIMIT CHECK – based on v6 (Quadratic VME) + revisions + CwD/SET overload cases
A3: Revision 6H | 18 Aug 2026 | Builds on v6 quadratic method, flexible Inputs, casing reminders
A5: METHOD (from v6)
A6: Ellipse generated by solving the von Mises quadratic: σa² + σh² – σa·σh = Yp²
A7: For each Axial Force, the two ΔP branches (upper & lower) are calculated → classic inclined shape.
A8: Connection shown as rectangular cut-offs (factored tension / compression / Pi / Pe) on the same axes.
A9: CwD and SET modes amplify the applied loads; Design Factors stay constant. Overload cases are provided that exceed weaker casing/thread envelopes.
A11: HOW TO USE
A12: 1. Sheet 1_Inputs – select casing (or Custom), set Mode (Standard / CwD / SET), enter base loads and DFs
A13: 2. Sheet 2_Connection – select connection or Custom
A14: 3. Sheet 3_Results – review SF and PASS/FAIL for pipe and connection
A15: 4. Sheet 4_VME_Plot – quadratic points + connection rectangle + overload markers (CwD / SET)
A16: Casing under study is recalled at the top of each calculation sheet.
A18: FULL REVISION LOG
A19: Rev | B19: Date | C19: Change attempted | D19: Result / note
A20: FINAL | B20: 18 Aug | C20: Screening Excel + classic Python VME plot | D20: Companion tools
A21: 7–10 | B21: 17–18 Aug | C21: Toggle / both-ellipses experiments | D21: Abandoned for production; v6 quadratic kept as reference
A22: 6H | B22: 18 Aug | C22: THIS FILE – v6 base + revision log + CwD/SET overload cases that exceed weaker envelopes | D22: Current
A23: 6 | B23: 17 Aug | C23: Quadratic VME solution + flexible Inputs | D23: Best mathematical basis; user extended with VLOOKUP-style selection
A24: 5 | B24: 17 Aug | C24: Normalized parametric + Units toggle | D24: Tilt still weak / toggle fragile
A25: 4 | B25: 17 Aug | C25: Parametric inclined ellipse + connection envelope | D25: Ellipse collapsed to line in real units
A26: 3 | B26: 17 Aug | C26: Casing example selector + VME chart | D26: OK
A27: 2 | B27: 17 Aug | C27: Connection tab + typical connections | D27: OK
A28: 1 | B28: 17 Aug | C28: First Design Limit Check (pipe body only) | D28: Baseline

Sheet 1_Inputs
A1: TUBULAR DATA & LOAD CASE
A3: EXAMPLE CASING
A4: Select example | B4: 7in 29ppf L80 | C4: Changing this updates OD / t / Yp below
A6: Database
A7: Casing | B7: OD (in) | C7: t (in) | D7: Yp (psi)
A8: 7in 29ppf L80 | B8: 7.000 | C8: 0.408 | D8: 80,000
A9: 7in 32ppf P110 | B9: 7.000 | C9: 0.453 | D9: 110,000
A10: 9-5/8in 47ppf L80 | B10: 9.625 | C10: 0.472 | D10: 80,000
A11: 9-5/8in 53.5ppf P110 | B11: 9.625 | C11: 0.545 | D11: 110,000
A12: 13-3/8in 68ppf K55 | B12: 13.375 | C12: 0.480 | D12: 55,000
A13: CUSTOM | B13: 7.000 | C13: 0.408 | D13: 80,000
A15: MODE
A16: Application Mode | B16: Standard
A17: Amplification | B17: =IF(B16="Standard",1,IF(B16="CwD",1.35,1.25)) -> 1.00 | C17: CwD 1.35 | SET 1.25 (screening hypothesis)
A19: ACTIVE TUBULAR (auto from selector or Custom) | B19: ='1_Inputs'!$B$4 -> 7in 29ppf L80
A20: OD (in) | B20: =VLOOKUP($B$4,casingfull,2,0) -> 7.000
A21: t (in) | B21: =VLOOKUP($B$4,casingfull,3,0) -> 0.408
A22: ID (in) | B22: =B20-2*B21 -> 6.184
A23: Yp (psi) | B23: =VLOOKUP($B$4,casingfull,4,0) -> 80,000
A24: Area (in²) | B24: =(PI()/4)*(B20^2-B22^2) -> 8.449
A25: Fa_yield (lbf) | B25: =B23*B24 -> 675,954
A26: pb Barlow (psi) | B26: =0.875*2*B23*B21/B20 -> 8,160.0
A28: CUSTOM (when Casing = Custom)
A29: Custom OD (in) | B29: 7.000
A30: Custom t (in) | B30: 0.408
A31: Custom Yp (psi) | B31: 80,000
A33: BASE LOAD CASE +
A34: Axial Force (lbf) [+ = tension] | B34: 150,000
A35: Pi (psi) | B35: 5,000
A36: Pe (psi) | B36: 2,000
A37: ΔP (psi) | B37: =B35-B36 -> 3,000
A38: Amplified Axial (lbf) | B38: =B34*B17 -> 150,000
A39: Amplified ΔP (psi) | B39: =B37*B17 -> 3,000
A41: PIPE DF
A42: DF Burst | B42: 1.10
A43: DF Collapse | B43: 1.00
A44: DF Axial T | B44: 1.60
A45: DF Axial C | B45: 1.30
A46: DF Triaxial | B46: 1.25
A48: OVERLOAD CASES (for visualisation – exceed weaker casing/thread)
A49: Case | B49: Fa (lbf) | C49: ΔP (psi) | D49: Amplified Fa | E49: Amplified ΔP
A50: Service – normal | B50: 120,000 | C50: 4,000 | D50: =B50*$B$17 -> 120,000 | E50: 4,000
A51: CwD – elevated torque/drag | B51: 320,000 | C51: 9,000 | D51: 320,000 | E51: 9,000
A52: CwD – severe (exceeds L80/BTC) | B52: 480,000 | C52: 12,000 | D52: 480,000 | E52: 12,000
A53: SET – post-expansion residual | B53: 200,000 | C53: 7,000 | D53: 200,000 | E53: 7,000
A54: SET – expansion peak (severe) | B54: 420,000 | C54: 11,000 | D54: 420,000 | E54: 11,000
A56: Note: CwD severe and SET expansion peak are sized to fall outside typical L80 + BTC envelopes while remaining inside high-capacity P110 + premium envelopes.

Sheet 2_Connection
A2: CONNECTION SELECTION
A3: ="Casing under study: "&'1_Inputs'!B4 -> Casing under study: 7in 29ppf L80
B4: ='1_Inputs'!$B$4 -> 7in 29ppf L80
A5: Connection choice | B5: BTC (standard)
A7: TYPICAL DATABASE (illustrative)
A8: Type | B8: Tension (lbf) | C8: Compression (lbf) | D8: Pi (psi) | E8: Pe (psi)
A9: BTC (standard) | B9: 450,000 | C9: 380,000 | D9: 5,500 | E9: 4,500
A10: Premium Metal-to-Metal | B10: 580,000 | C10: 520,000 | D10: 7,500 | E10: 6,000
A11: High-Torque Expandable | B11: 400,000 | C11: 360,000 | D11: 5,000 | E11: 4,000
A12: Custom connection | B12: 500,000 | C12: 450,000 | D12: 6,500 | E12: 5,000
A14: ACTIVE VALUES
A15: Tension (lbf) | B15: =VLOOKUP($B$5,connectionfull,2,0) -> 450,000
A16: Compression (lbf) | B16: =VLOOKUP($B$5,connectionfull,3,0) -> 380,000
A17: Pi (psi) | B17: =VLOOKUP($B$5,connectionfull,4,0) -> 5,500
A18: Pe (psi) | B18: =VLOOKUP($B$5,connectionfull,5,0) -> 4,500
A20: CUSTOM
A21: Custom Tension | B21: 500,000
A22: Custom Compression | B22: 450,000
A23: Custom Pi | B23: 6,500
A24: Custom Pe | B24: 5,000
A26: CONNECTION DF
A27: DF Tension | B27: 1.60
A28: DF Compression | B28: 1.40
A29: DF Pressure | B29: 1.25

Sheet 3_Results
A2: RESULTS – PIPE + CONNECTION
A3: ="Casing under study: "&'1_Inputs'!B4&" | Mode: "&'1_Inputs'!B16&" | Connection: "&'2_Connection'!B5 -> Casing under study: 7in 29ppf L80 | Mode: Standard | Connection: BTC (standard)
B4: ='1_Inputs'!$B$4 -> 7in 29ppf L80
A5: Pipe Burst (psi) | B5: ='1_Inputs'!B26 -> 8,160.0
A6: Pipe Axial Yield (lbf) | B6: ='1_Inputs'!B25 -> 675,954
A7: Amplified Axial | B7: ='1_Inputs'!B38 -> 150,000
A8: Amplified ΔP | B8: ='1_Inputs'!B39 -> 3,000
A10: PIPE SF
A11: Burst SF | B11: =IF(B8=0,"n/a",B5/ABS(B8)) -> 2.72 | C11: ='1_Inputs'!B42 -> 1.1 | D11: =IF(B11="n/a","n/a",IF(B11>=C11,"PASS","FAIL")) -> PASS
A12: Axial SF | B12: =IF(B7=0,"n/a",B6/ABS(B7)) -> 4.51 | C12: =IF(B7>=0,'1_Inputs'!B44,'1_Inputs'!B45) -> 1.6 | D12: =IF(B12="n/a","n/a",IF(B12>=C12,"PASS","FAIL")) -> PASS
A14: CONNECTION SF | B14: ='2_Connection'!$B$5 -> BTC (standard)
A15: Conn Tension SF | B15: =IF(B7<=0,"n/a",'2_Connection'!B15/ABS(B7)) -> 3.00 | C15: ='2_Connection'!B27 -> 1.6 | D15: =IF(B15="n/a","n/a",IF(B15>=C15,"PASS","FAIL")) -> PASS
A16: Conn Pressure SF | B16: =IF(B8=0,"n/a",IF(B8>0,'2_Connection'!B17/ABS(B8),'2_Connection'!B18/ABS(B8))) -> 1.83 | C16: ='2_Connection'!B29 -> 1.25 | D16: =IF(B16="n/a","n/a",IF(B16>=C16,"PASS","FAIL")) -> PASS
A18: FINAL | B18: =IF(AND(OR(D11="PASS",D11="n/a"),OR(D12="PASS",D12="n/a"),OR(D15="PASS",D15="n/a"),OR(D16="PASS",D16="n/a")),"ACCEPTABLE","NOT ACCEPTABLE") -> ACCEPTABLE

Sheet 4_VME_data plot
A2: VME DESIGN LIMIT PLOT – Quadratic solution + CwD/SET overload markers
A3: ="Casing: "&'1_Inputs'!B4&" | Mode: "&'1_Inputs'!B16&" | Connection: "&'2_Connection'!B5 -> Casing: 7in 29ppf L80 | Mode: Standard | Connection: BTC (standard)
A5: Pipe parameters | B5: ='1_Inputs'!$B$4 -> 7in 29ppf L80
A6: Yp (psi) | B6: ='1_Inputs'!B23 -> 80,000
A7: Area (in²) | B7: ='1_Inputs'!B24 -> 8.449
A8: Fa_yield (lbf) | B8: ='1_Inputs'!B25 -> 675,954
A9: pb (psi) | B9: ='1_Inputs'!B26 -> 8,160.0
A10: DF triaxial | B10: ='1_Inputs'!B46 -> 1.25
A11: OD (in) | B11: ='1_Inputs'!B20 -> 7.000
A12: t (in) | B12: ='1_Inputs'!B21 -> 0.408
A14: Connection cut-offs (factored) | B14: ='2_Connection'!$B$5 -> BTC (standard)
A15: Conn T (lbf) | B15: ='2_Connection'!B15/'2_Connection'!B27 -> 281,250
A16: Conn C (lbf) | B16: =-'2_Connection'!B16/'2_Connection'!B28 -> -271,429
A17: Conn Pi (psi) | B17: ='2_Connection'!B17/'2_Connection'!B29 -> 4,400.0
A18: Conn Pe (psi) | B18: =-'2_Connection'!B18/'2_Connection'!B29 -> -3,600.0
C31: QUADRATIC VME POINTS (exact solution)
C32: i | D32: Fa_lbf | E32: sigma_a | F32: Disc | G32: DP_upper | H32: DP_lower | I32: Fa_DF | J32: DP_up_DF | K32: DP_lo_DF
C33: 0.0 | D33: =-1*$B$8 -> -675954.1 | E33: =D33/$B$7 -> -80000.0 | F33: =4*$B$6^2-3*E33^2 -> 6400000000.0 | G33: =IF(F33<0,NA(),((E33+SQRT(F33))/2)*(2*$B$12/$B$11)) -> 0.0 | H33: =IF(F33<0,NA(),((E33-SQRT(F33))/2)*(2*$B$12/$B$11)) -> -9325.7 | I33: =D33/$B$10 -> -540763.3 | J33: =G33/$B$10 -> 0.0 | K33: =H33/$B$10 -> -7460.6
C34: 1.0 | D34: =-0.95*$B$8 -> -642156.4 | E34: -76000.0 | F34: 8272000000.0 | G34: 871.4 | H34: -9730.8 | I34: -513725.1 | J34: 697.1 | K34: -7784.7
C35: 2.0 | D35: =-0.9*$B$8 -> -608358.7 | E35: -72000.0 | F35: 10048000000.0 | G35: 1646.0 | H35: -10039.1 | I35: -486687.0 | J35: 1316.8 | K35: -8031.3
C36: 3.0 | D36: =-0.85*$B$8 -> -574561.0 | E36: -68000.0 | F36: 11728000000.0 | G36: 2348.7 | H36: -10275.5 | I36: -459648.8 | J36: 1878.9 | K36: -8220.4
C37: 4.0 | D37: =-0.8*$B$8 -> -540763.3 | E37: -64000.0 | F37: 13312000000.0 | G37: 2994.6 | H37: -10455.2 | I37: -432610.6 | J37: 2395.7 | K37: -8364.1
C38: 5.0 | D38: =-0.75*$B$8 -> -506965.6 | E38: -60000.0 | F38: 14800000000.0 | G38: 3593.6 | H38: -10587.9 | I38: -405572.5 | J38: 2874.9 | K38: -8470.3
C39: 6.0 | D39: =-0.7*$B$8 -> -473167.9 | E39: -56000.0 | F39: 16192000000.0 | G39: 4152.7 | H39: -10680.7 | I39: -378534.3 | J39: 3322.2 | K39: -8544.6
C40: 7.0 | D40: =-0.65*$B$8 -> -439370.2 | E40: -52000.0 | F40: 17488000000.0 | G40: 4677.0 | H40: -10738.7 | I40: -351496.1 | J40: 3741.6 | K40: -8591.0
C41: 8.0 | D41: =-0.6*$B$8 -> -405572.5 | E41: -48000.0 | F41: 18688000000.0 | G41: 5170.2 | H41: -10765.6 | I41: -324458.0 | J41: 4136.1 | K41: -8612.5
C42: 9.0 | D42: =-0.55*$B$8 -> -371774.8 | E42: -44000.0 | F42: 19792000000.0 | G42: 5635.3 | H42: -10764.4 | I42: -297419.8 | J42: 4508.2 | K42: -8611.6
C43: 10.0 | D43: =-0.5*$B$8 -> -337977.1 | E43: -40000.0 | F43: 20800000000.0 | G43: 6074.7 | H43: -10737.5 | I43: -270381.6 | J43: 4859.7 | K43: -8590.0
C44: 11.0 | D44: =-0.449999999999999*$B$8 -> -304179.4 | E44: -36000.0 | F44: 21712000000.0 | G44: 6490.1 | H44: -10686.7 | I44: -243343.5 | J44: 5192.1 | K44: -8549.3
C45: 12.0 | D45: =-0.4*$B$8 -> -270381.6 | E45: -32000.0 | F45: 22528000000.0 | G45: 6883.2 | H45: -10613.4 | I45: -216305.3 | J45: 5506.5 | K45: -8490.8
C46: 13.0 | D46: =-0.35*$B$8 -> -236583.9 | E46: -28000.0 | F46: 23248000000.0 | G46: 7255.0 | H46: -10519.0 | I46: -189267.2 | J46: 5804.0 | K46: -8415.2
C47: 14.0 | D47: =-0.3*$B$8 -> -202786.2 | E47: -24000.0 | F47: 23872000000.0 | G47: 7606.6 | H47: -10404.3 | I47: -162229.0 | J47: 6085.3 | K47: -8323.5
C48: 15.0 | D48: =-0.25*$B$8 -> -168988.5 | E48: -20000.0 | F48: 24400000000.0 | G48: 7938.8 | H48: -10270.2 | I48: -135190.8 | J48: 6351.0 | K48: -8216.2
C49: 16.0 | D49: =-0.199999999999999*$B$8 -> -135190.8 | E49: -16000.0 | F49: 24832000000.0 | G49: 8252.2 | H49: -10117.3 | I49: -108152.7 | J49: 6601.8 | K49: -8093.9
C50: 17.0 | D50: =-0.15*$B$8 -> -101393.1 | E50: -12000.0 | F50: 25168000000.0 | G50: 8547.3 | H50: -9946.1 | I50: -81114.5 | J50: 6837.8 | K50: -7956.9
C51: 18.0 | D51: =-0.0999999999999999*$B$8 -> -67595.4 | E51: -8000.0 | F51: 25408000000.0 | G51: 8824.4 | H51: -9757.0 | I51: -54076.3 | J51: 7059.5 | K51: -7805.6
C52: 19.0 | D52: =-0.05*$B$8 -> -33797.7 | E52: -4000.0 | F52: 25552000000.0 | G52: 9083.8 | H52: -9550.1 | I52: -27038.2 | J52: 7267.1 | K52: -7640.1
C53: 20.0 | D53: =0*$B$8 -> 0.0 | E53: 0.0 | F53: 25600000000.0 | G53: 9325.7 | H53: -9325.7 | I53: 0.0 | J53: 7460.6 | K53: -7460.6
C54: 21.0 | D54: =0.05*$B$8 -> 33797.7 | E54: 4000.0 | F54: 25552000000.0 | G54: 9550.1 | H54: -9083.8 | I54: 27038.2 | J54: 7640.1 | K54: -7267.1
C55: 22.0 | D55: =0.1*$B$8 -> 67595.4 | E55: 8000.0 | F55: 25408000000.0 | G55: 9757.0 | H55: -8824.4 | I55: 54076.3 | J55: 7805.6 | K55: -7059.5
C56: 23.0 | D56: =0.149999999999999*$B$8 -> 101393.1 | E56: 12000.0 | F56: 25168000000.0 | G56: 9946.1 | H56: -8547.3 | I56: 81114.5 | J56: 7956.9 | K56: -6837.8
C57: 24.0 | D57: =0.199999999999999*$B$8 -> 135190.8 | E57: 16000.0 | F57: 24832000000.0 | G57: 10117.3 | H57: -8252.2 | I57: 108152.7 | J57: 8093.9 | K57: -6601.8
C58: 25.0 | D58: =0.25*$B$8 -> 168988.5 | E58: 20000.0 | F58: 24400000000.0 | G58: 10270.2 | H58: -7938.8 | I58: 135190.8 | J58: 8216.2 | K58: -6351.0
C59: 26.0 | D59: =0.3*$B$8 -> 202786.2 | E59: 24000.0 | F59: 23872000000.0 | G59: 10404.3 | H59: -7606.6 | I59: 162229.0 | J59: 8323.5 | K59: -6085.3
C60: 27.0 | D60: =0.35*$B$8 -> 236583.9 | E60: 28000.0 | F60: 23248000000.0 | G60: 10519.0 | H60: -7255.0 | I60: 189267.2 | J60: 8415.2 | K60: -5804.0
C61: 28.0 | D61: =0.399999999999999*$B$8 -> 270381.6 | E61: 32000.0 | F61: 22528000000.0 | G61: 10613.4 | H61: -6883.2 | I61: 216305.3 | J61: 8490.8 | K61: -5506.5
C62: 29.0 | D62: =0.449999999999999*$B$8 -> 304179.4 | E62: 36000.0 | F62: 21712000000.0 | G62: 10686.7 | H62: -6490.1 | I62: 243343.5 | J62: 8549.3 | K62: -5192.1
C63: 30.0 | D63: =0.5*$B$8 -> 337977.1 | E63: 40000.0 | F63: 20800000000.0 | G63: 10737.5 | H63: -6074.7 | I63: 270381.6 | J63: 8590.0 | K63: -4859.7
C64: 31.0 | D64: =0.55*$B$8 -> 371774.8 | E64: 44000.0 | F64: 19792000000.0 | G64: 10764.4 | H64: -5635.3 | I64: 297419.8 | J64: 8611.6 | K64: -4508.2
C65: 32.0 | D65: =0.6*$B$8 -> 405572.5 | E65: 48000.0 | F65: 18688000000.0 | G65: 10765.6 | H65: -5170.2 | I65: 324458.0 | J65: 8612.5 | K65: -4136.1
C66: 33.0 | D66: =0.649999999999999*$B$8 -> 439370.2 | E66: 52000.0 | F66: 17488000000.0 | G66: 10738.7 | H66: -4677.0 | I66: 351496.1 | J66: 8591.0 | K66: -3741.6
C67: 34.0 | D67: =0.7*$B$8 -> 473167.9 | E67: 56000.0 | F67: 16192000000.0 | G67: 10680.7 | H67: -4152.7 | I67: 378534.3 | J67: 8544.6 | K67: -3322.2
C68: 35.0 | D68: =0.75*$B$8 -> 506965.6 | E68: 60000.0 | F68: 14800000000.0 | G68: 10587.9 | H68: -3593.6 | I68: 405572.5 | J68: 8470.3 | K68: -2874.9
C69: 36.0 | D69: =0.8*$B$8 -> 540763.3 | E69: 64000.0 | F69: 13312000000.0 | G69: 10455.2 | H69: -2994.6 | I69: 432610.6 | J69: 8364.1 | K69: -2395.7
C70: 37.0 | D70: =0.85*$B$8 -> 574561.0 | E70: 68000.0 | F70: 11728000000.0 | G70: 10275.5 | H70: -2348.7 | I70: 459648.8 | J70: 8220.4 | K70: -1878.9
C71: 38.0 | D71: =0.899999999999999*$B$8 -> 608358.7 | E71: 72000.0 | F71: 10048000000.0 | G71: 10039.1 | H71: -1646.0 | I71: 486687.0 | J71: 8031.3 | K71: -1316.8
C72: 39.0 | D72: =0.95*$B$8 -> 642156.4 | E72: 76000.0 | F72: 8272000000.0 | G72: 9730.8 | H72: -871.4 | I72: 513725.1 | J72: 7784.7 | K72: -697.1
C73: 40.0 | D73: =1*$B$8 -> 675954.1 | E73: 80000.0 | F73: 6400000000.0 | G73: 9325.7 | H73: 0.0 | I73: 540763.3 | J73: 7460.6 | K73: 0.0
C75: OVERLOAD / SERVICE MARKERS (amplified Fa, ΔP)
C76: Case | D76: Fa_amp | E76: ΔP_amp
C77: ='1_Inputs'!A50 -> Service – normal | D77: ='1_Inputs'!D50 -> 120,000 | E77: ='1_Inputs'!E50 -> 4,000
C78: ='1_Inputs'!A51 -> CwD – elevated torque/drag | D78: ='1_Inputs'!D51 -> 320,000 | E78: ='1_Inputs'!E51 -> 9,000
C79: ='1_Inputs'!A52 -> CwD – severe (exceeds L80/BTC) | D79: ='1_Inputs'!D52 -> 480,000 | E79: ='1_Inputs'!E52 -> 12,000
C80: ='1_Inputs'!A53 -> SET – post-expansion residual | D80: ='1_Inputs'!D53 -> 200,000 | E80: ='1_Inputs'!E53 -> 7,000
C81: ='1_Inputs'!A54 -> SET – expansion peak (severe) | D81: ='1_Inputs'!D54 -> 420,000 | E81: ='1_Inputs'!E54 -> 11,000
C83: CONNECTION RECTANGLE
C84: Axial | D84: ΔP
C85: =$B$15 -> 281,250.0 | D85: =$B$17 -> 4,400.0
C86: =$B$15 -> 281,250.0 | D86: =$B$18 -> -3,600.0
C87: =$B$16 -> -271,428.6 | D87: =$B$18 -> -3,600.0
C88: =$B$16 -> -271,428.6 | D88: =$B$17 -> 4,400.0
C89: =$B$15 -> 281,250.0 | D89: =$B$17 -> 4,400.0
